bitfinex-derivatives/quotes_BNBF0:USTF0_20250220
["timestamp","ask_amount","ask_price","bid_price","bid_amount"]
[1740077240209,3.09775313,653.3,652.28,0.30661679]
[1740077240408,3.09775313,653.29,652.28,0.30661679]
[1740077240709,3.09775313,653.28,652.28,0.30661679]
[1740077241009,3.09775313,653.27,652.28,0.30661679]
[1740077241207,3.09775313,653.26,652.28,0.30661679]
[1740077241403,3.09775313,653.25,652.28,0.30661679]
[1740077241603,3.09775313,653.24,652.28,0.30661679]
[1740077241807,3.09775313,653.23,652.28,0.30661679]
[1740077242003,3.09775313,653.22,652.28,0.30661679]
[1740077242206,3.09775313,653.21,652.28,0.30661679]
[1740077242409,3.09775313,653.2,652.28,0.30661679]
[1740077242609,3.09775313,653.19,652.28,0.30661679]
[1740077242811,3.09775313,653.18,652.28,0.30661679]
[1740077243010,3.09775313,653.17,652.28,0.30661679]
[1740077243212,3.09775313,653.16,652.28,0.30661679]
[1740077243413,3.09775313,653.15,652.28,0.30661679]
[1740077243711,3.09775313,653.14,652.28,0.30661679]
[1740077243912,3.09775313,653.13,652.28,0.30661679]
[1740077244112,3.09775313,653.12,652.28,0.30661679]
[1740077244309,4.70375313,653.11,652.28,0.30661679]
[1740077244513,5.31079658,653.1,652.28,0.30661679]
[1740077244709,3.09775313,653.09,652.28,0.30661679]
[1740077244910,3.09775313,653.08,652.28,0.30661679]
[1740077245106,3.09775313,653.07,652.02,1.13018886]
[1740077245408,3.09775313,653.06,652.02,1.13018886]
[1740077245616,3.09775313,653.05,652.02,1.13018886]
[1740077245815,3.09775313,653.04,652.02,1.13018886]
[1740077246016,3.09775313,653.03,652.02,1.13018886]
[1740077246210,3.09775313,653.02,652.02,1.13018886]
[1740077246411,3.09775313,653.01,652.02,1.13018886]
[1740077246616,3.09775313,653.0,652.02,1.13018886]
[1740077246814,3.09775313,652.99,652.02,1.13018886]
[1740077247110,3.09775313,652.98,652.02,1.13018886]
[1740077247310,3.09775313,652.97,652.02,1.13018886]
[1740077247513,3.09775313,652.96,652.02,1.13018886]
[1740077247713,3.09775313,652.95,651.89,1.13018886]
[1740077247915,3.09775313,652.94,651.89,1.13018886]
[1740077248120,3.09775313,652.93,651.89,1.13018886]
[1740077248323,3.09775313,652.92,651.89,1.13018886]
[1740077248520,3.09775313,652.91,651.89,1.13018886]
[1740077248721,3.09775313,652.9,651.89,1.13018886]
[1740077248919,3.09775313,652.89,651.89,1.13018886]
[1740077249116,3.09775313,652.88,651.89,1.13018886]
[1740077249420,3.09775313,652.87,651.89,1.13018886]
[1740077249624,3.09775313,652.86,651.89,1.13018886]
[1740077249822,3.09775313,652.85,651.89,1.13018886]
[1740077250023,3.09775313,652.84,651.89,1.13018886]
[1740077250223,3.09775313,652.83,651.89,1.13018886]
[1740077250525,3.09775313,652.82,651.89,1.13018886]
[1740077250824,3.09775313,652.81,651.89,1.13018886]
[1740077251019,3.09775313,652.8,651.96,1.13018886]
[1740077251223,3.09775313,652.79,651.96,1.13018886]
[1740077251423,3.09775313,652.78,651.96,1.13018886]
[1740077251624,3.09775313,652.77,651.96,1.13018886]
[1740077251820,3.09775313,652.76,651.96,1.13018886]
[1740077252125,2.21304345,652.78,651.96,1.13018886]
[1740077252320,3.08386919,652.77,651.96,1.13018886]
[1740077252524,3.08386919,652.76,651.96,1.13018886]
[1740077252720,3.08386919,652.75,651.96,1.13018886]
[1740077253025,5.29691264,652.74,651.96,1.13018886]
[1740077253226,3.08386919,652.73,651.96,1.13018886]
[1740077253426,3.08386919,652.72,651.96,1.13018886]
[1740077253628,3.08386919,652.71,651.96,1.13018886]
[1740077253925,3.08386919,652.7,651.96,1.13018886]
[1740077254127,2.21304345,652.74,651.74,1.12967756]
[1740077254128,3.08250125,652.69,651.97,1.13018886]
[1740077254427,3.08250125,652.68,651.97,1.13018886]
[1740077254726,3.08250125,652.67,651.97,1.13018886]
[1740077254926,3.08250125,652.66,651.97,1.13018886]
[1740077255127,3.08250125,652.65,651.97,1.13018886]
[1740077255426,3.08250125,652.64,651.97,1.13018886]
[1740077255626,3.08250125,652.63,651.97,1.13018886]
[1740077255822,3.08250125,652.62,651.97,1.13018886]
[1740077256022,3.08250125,652.61,651.97,1.13018886]
[1740077256226,3.08250125,652.6,651.97,1.13018886]
[1740077256527,3.08250125,652.59,651.97,1.13018886]
[1740077256728,3.08250125,652.58,651.97,1.13018886]
[1740077257026,2.21304345,652.6,651.97,1.13018886]
[1740077257228,2.21304345,652.6,651.86,1.13018886]
[1740077257726,1.716,652.86,651.86,1.13018886]
[1740077259723,1.716,652.86,651.65,1.13018886]
[1740077259931,1.716,652.86,651.66,0.30690851]
[1740077264134,3.07739407,652.85,651.66,0.30690851]
[1740077264331,3.07739407,652.84,651.66,0.30690851]
[1740077264631,3.07739407,652.83,651.66,0.30690851]
[1740077264836,3.07739407,652.82,651.66,0.30690851]
[1740077265032,3.07739407,652.81,651.66,0.30690851]
[1740077265229,3.07739407,652.8,651.66,0.30690851]
[1740077265428,3.07739407,652.79,651.66,0.30690851]
[1740077265632,2.19823397,652.85,651.66,0.30690851]
[1740077265833,2.19823397,652.78,652.01,1.13018886]
[1740077267937,2.19823397,652.77,652.01,1.13018886]
[1740077268938,2.19823397,652.77,652.05,1.13018886]
[1740077269638,2.19823397,652.76,652.05,1.13018886]
[1740077271132,2.19823397,652.75,652.05,1.13018886]
[1740077271737,2.19823397,652.75,651.66,0.30690851]
[1740077272434,2.19823397,652.74,651.66,0.30690851]
[1740077273740,2.19823397,652.73,651.66,0.30690851]
[1740077274142,2.19823397,652.73,651.7,1.13018886]
[1740077275442,2.19823397,652.72,651.7,1.13018886]
[1740077277041,1.738,652.76,651.66,0.30690851]
[1740077277042,2.19823397,652.71,651.71,1.13018886]
[1740077278243,3.08012865,652.7,651.71,1.13018886]
[1740077278443,5.27836262,652.69,651.71,1.13018886]
[1740077278649,3.08012865,652.68,651.72,0.30688025]
[1740077278847,3.08012865,652.67,651.72,0.30688025]
[1740077279147,3.08012865,652.66,651.72,0.30688025]
[1740077279348,3.08012865,652.65,651.72,0.30688025]
[1740077279542,3.08012865,652.64,651.72,0.30688025]
[1740077279747,3.08012865,652.63,651.72,0.30688025]
[1740077279948,3.08012865,652.62,651.72,0.30688025]
[1740077280152,3.08012865,652.61,651.8,1.13018886]
[1740077280344,3.08012865,652.6,651.8,1.13018886]
[1740077280549,3.08012865,652.59,651.8,1.13018886]
[1740077280745,3.08012865,652.58,651.8,1.13018886]
[1740077280945,3.08012865,652.57,651.8,1.13018886]
[1740077281152,3.08012865,652.56,651.8,1.13018886]
[1740077281351,2.969,652.76,651.8,1.13018886]
[1740077281548,2.969,652.76,651.8,1.43703144]
[1740077281755,2.969,652.76,651.81,0.30683788]
[1740077281952,3.0836444,652.75,651.81,0.30683788]
[1740077282148,3.0836444,652.74,651.81,0.30683788]
[1740077282351,3.0836444,652.73,651.81,0.30683788]
[1740077282547,3.0836444,652.72,651.81,0.30683788]
[1740077282751,3.0836444,652.71,651.81,0.30683788]
[1740077282952,3.0836444,652.7,651.81,0.30683788]
[1740077283249,3.0836444,652.69,651.81,0.30683788]
[1740077283454,3.0836444,652.68,651.81,0.30683788]
[1740077283754,3.0836444,652.67,652.25,1.13018886]
[1740077284055,3.0836444,652.66,652.25,1.13018886]
[1740077284255,3.0836444,652.65,652.25,1.13018886]
[1740077284453,2.20258984,652.68,652.25,1.13018886]
[1740077285657,2.969,652.76,652.25,1.13018886]
[1740077286252,2.20637974,652.75,652.25,1.13018886]
[1740077286653,2.20637974,652.75,652.18,1.13018886]
[1740077287852,1.231,652.76,652.18,1.13018886]
[1740077289155,1.231,652.76,652.04,1.13018886]
[1740077292559,2.20771017,652.75,652.04,1.13018886]
[1740077294352,3.09165766,652.74,652.04,1.13018886]
[1740077294557,2.20771017,652.73,652.04,1.13018886]
[1740077294955,3.09158348,652.72,652.04,1.13018886]
[1740077295162,3.09154328,652.71,651.98,1.13018886]
[1740077295357,2.20771017,652.73,651.98,1.13018886]
[1740077295561,2.20771017,652.72,651.98,1.13018886]
[1740077296661,3.09257286,652.71,651.98,1.13018886]
[1740077296862,3.09257286,652.7,651.98,1.13018886]
[1740077297062,2.20771017,652.7,651.98,1.13018886]
[1740077297463,3.09344162,652.69,652.0,1.13018886]
[1740077297660,3.09338861,652.68,652.0,1.13018886]
[1740077297860,3.09338861,652.67,652.0,1.13018886]
[1740077298158,3.09338861,652.66,652.0,1.13018886]
[1740077298359,3.09338861,652.65,652.0,1.13018886]
[1740077298558,2.20771017,652.65,652.0,1.13018886]
[1740077299758,1.299,652.87,652.0,1.13018886]
[1740077299964,5.30651934,652.86,652.0,1.13018886]
[1740077300260,3.09551878,652.85,652.0,1.13018886]
[1740077300564,3.09551878,652.84,652.08,1.13018886]
[1740077300761,3.09551878,652.83,652.08,1.13018886]
[1740077300958,3.09551878,652.82,652.08,1.13018886]
[1740077301159,3.09551878,652.81,652.08,1.13018886]
[1740077301358,3.09551878,652.8,652.08,1.13018886]
[1740077301561,3.09551878,652.79,652.08,1.13018886]
[1740077301864,3.09551878,652.78,652.08,1.13018886]
[1740077302065,3.09551878,652.77,652.08,1.13018886]
[1740077302367,3.09551878,652.76,652.08,1.13018886]
[1740077302564,3.09551878,652.75,652.08,1.13018886]
[1740077302763,3.09551878,652.74,652.08,1.13018886]
[1740077302967,3.09551878,652.73,652.08,1.13018886]
[1740077303166,3.09551878,652.72,652.08,1.13018886]
[1740077303367,3.09551878,652.71,652.08,1.13018886]
[1740077303668,3.09551878,652.7,652.08,1.13018886]
[1740077303864,2.21100056,652.75,652.08,1.13018886]
[1740077304062,3.09703477,652.74,652.08,1.13018886]
[1740077304260,3.09703477,652.73,652.08,1.13018886]
[1740077304462,5.30803533,652.72,652.35,1.13018886]
[1740077304666,3.09703477,652.71,652.35,1.13018886]
[1740077304865,3.09703477,652.7,652.35,1.13018886]
[1740077305066,2.21100056,652.72,652.35,1.13018886]
[1740077305466,3.09720069,652.71,652.35,1.13018886]
[1740077305668,2.21100056,652.72,652.35,1.13018886]
[1740077305963,3.09727152,652.71,652.35,1.13018886]
[1740077306166,3.09727152,652.7,652.35,1.13018886]
[1740077306366,2.21211306,652.71,652.35,1.13018886]
[1740077306563,3.09680013,652.7,652.35,1.13018886]
[1740077306767,2.21211306,652.71,652.35,1.13018886]
[1740077307171,2.21211306,652.71,652.37,1.13018886]
[1740077308071,1.299,652.87,652.37,1.13018886]
[1740077308268,3.09668613,652.86,652.37,1.13018886]
[1740077308471,3.09668613,652.85,652.37,1.13018886]
[1740077308667,3.09668613,652.84,652.37,1.13018886]
[1740077308973,3.09668613,652.83,652.37,1.13018886]
[1740077309173,3.09668613,652.82,652.37,1.13018886]
[1740077309371,3.09668613,652.81,652.37,1.13018886]
[1740077309675,3.09668613,652.8,652.37,1.13018886]
[1740077309870,3.09668613,652.79,652.37,1.13018886]
[1740077310072,3.09668613,652.78,652.37,1.13018886]
[1740077310370,5.30838778,652.77,652.37,1.13018886]
[1740077310568,3.09668613,652.76,652.37,1.13018886]
[1740077310770,3.09668613,652.75,652.37,1.13018886]
[1740077310974,3.09668613,652.75,652.15,1.12967756]
[1740077310975,3.09668613,652.74,652.15,1.13018886]
[1740077311170,3.09668613,652.73,652.15,1.13018886]
[1740077311373,3.09668613,652.72,652.15,1.13018886]
[1740077311676,3.09668613,652.71,652.15,1.13018886]
[1740077311874,3.09668613,652.7,652.15,1.13018886]
[1740077312076,2.21170165,652.71,652.15,1.13018886]
[1740077312279,3.09583699,652.7,652.15,1.13018886]
[1740077312471,2.21170165,652.71,652.15,1.13018886]
[1740077312777,3.09565543,652.7,652.15,1.13018886]
[1740077312976,2.21170165,652.71,652.15,1.13018886]
[1740077313177,3.09562026,652.7,652.15,1.13018886]
[1740077313373,2.21170165,652.71,652.15,1.13018886]
[1740077313672,5.30718266,652.7,652.15,1.13018886]
[1740077313874,2.21170165,652.7,652.15,1.13018886]
[1740077314071,2.21170165,652.7,652.26,1.13018886]
[1740077315379,1.299,652.87,652.26,1.13018886]
[1740077315576,3.09549564,652.86,652.26,1.13018886]
[1740077315779,3.09549564,652.85,652.26,1.13018886]
[1740077315977,3.09549564,652.84,652.26,1.13018886]
[1740077316284,2.21091534,652.85,652.26,1.13018886]
[1740077316285,3.09549564,652.83,652.26,1.13018886]
[1740077316483,3.09549564,652.82,652.26,1.13018886]
[1740077316684,3.09549564,652.81,652.26,1.13018886]
[1740077316879,3.09549564,652.8,652.26,1.13018886]
[1740077317079,3.09549564,652.79,652.26,1.13018886]
[1740077317280,3.09549564,652.78,652.26,1.13018886]
[1740077317479,3.09549564,652.77,652.26,1.13018886]
[1740077317684,3.09549564,652.76,652.26,1.13018886]
[1740077317985,3.09549564,652.75,652.26,1.13018886]
[1740077318186,3.09549564,652.74,652.26,1.13018886]
[1740077318380,3.09549564,652.73,652.26,1.13018886]
[1740077318584,3.09549564,652.72,652.26,1.13018886]
[1740077318782,2.21091534,652.78,652.47,1.13018886]
[1740077319087,5.30592532,652.77,652.47,1.13018886]
[1740077319288,3.09500998,652.76,652.47,1.13018886]
[1740077319587,3.09500998,652.75,652.47,1.13018886]
[1740077319788,3.09500998,652.74,652.47,1.13018886]
[1740077319987,3.09500998,652.73,652.47,1.13018886]
[1740077320287,3.09500998,652.72,652.47,1.13018886]
[1740077320490,3.09500998,652.71,652.47,1.13018886]
[1740077320791,1.333,652.96,652.47,1.13018886]
[1740077320990,3.09443546,652.95,652.47,1.13018886]
[1740077321190,3.09443546,652.94,652.47,1.13018886]
[1740077321490,3.09443546,652.93,652.47,1.13018886]
[1740077321690,3.09443546,652.92,652.47,1.13018886]
[1740077321890,3.09443546,652.91,652.47,1.13018886]
[1740077322087,3.09443546,652.9,652.53,1.13018886]
[1740077322288,3.09443546,652.89,652.53,1.13018886]
[1740077322496,3.09443546,652.88,652.53,1.13018886]
[1740077322693,3.09443546,652.87,652.53,1.13018886]
[1740077322894,3.09443546,652.86,652.53,1.13018886]
[1740077323094,3.09443546,652.85,652.53,1.13018886]
[1740077323294,3.09443546,652.84,652.53,1.13018886]
[1740077323490,3.09443546,652.83,652.53,1.13018886]
[1740077323693,3.09443546,652.82,652.53,1.13018886]
[1740077323890,3.09443546,652.81,652.53,1.13018886]
[1740077324096,3.09443546,652.8,652.53,1.13018886]
[1740077324293,3.09443546,652.79,652.53,1.13018886]
[1740077324488,3.09443546,652.78,652.53,1.13018886]
[1740077324689,3.09443546,652.77,652.33,1.13018886]
[1740077324895,5.30456853,652.76,652.33,1.13018886]
[1740077325091,3.09443546,652.75,652.33,1.13018886]
[1740077325396,3.09443546,652.74,652.33,1.13018886]
[1740077325597,3.09443546,652.73,652.33,1.13018886]
[1740077325789,3.09443546,652.72,652.33,1.13018886]
[1740077325992,3.09443546,652.71,652.33,1.13018886]
[1740077326191,5.30456853,652.7,652.33,1.13018886]
[1740077326397,3.0948844,652.69,652.33,1.13018886]
[1740077326593,2.21013307,652.7,652.33,1.13018886]
[1740077326793,3.09489891,652.69,652.33,1.13018886]
[1740077326993,2.21013307,652.7,652.33,1.13018886]
[1740077327300,3.09485678,652.69,652.37,1.13018886]
[1740077327494,1.333,652.96,652.37,1.13018886]
[1740077327694,3.09517201,652.95,652.37,1.13018886]
[1740077327896,3.09517201,652.94,652.37,1.13018886]
[1740077328100,3.09517201,652.93,652.37,1.13018886]
[1740077328296,3.09517201,652.92,652.37,1.13018886]
[1740077328500,3.09517201,652.91,652.37,1.13018886]
[1740077328700,2.2107889,652.95,652.37,1.13018886]
[1740077328701,3.09517201,652.9,652.37,1.13018886]
[1740077328902,3.09517201,652.89,652.37,1.13018886]
[1740077329096,3.09517201,652.88,652.37,1.13018886]
[1740077329300,3.09517201,652.87,652.37,1.13018886]
[1740077329500,3.09517201,652.86,652.37,1.13018886]
[1740077329699,3.09517201,652.85,652.37,1.13018886]
[1740077329898,3.09517201,652.84,652.37,1.13018886]
[1740077330103,3.09517201,652.83,652.37,1.13018886]
[1740077330304,3.09517201,652.82,652.38,1.13018886]
[1740077330504,3.09517201,652.81,652.38,1.13018886]
[1740077330806,3.09517201,652.8,652.38,1.13018886]
[1740077331003,3.09517201,652.79,652.38,1.13018886]
[1740077331199,3.09517201,652.78,652.38,1.13018886]
[1740077331404,3.09517201,652.77,652.38,1.13018886]
[1740077331604,2.2107889,652.79,652.38,1.13018886]
[1740077331605,3.09517201,652.76,652.38,1.13018886]
[1740077331904,3.09517201,652.75,652.38,1.13018886]
[1740077332108,3.09517201,652.74,652.38,1.13018886]
[1740077332305,3.09517201,652.73,652.38,1.13018886]
[1740077332504,3.09517201,652.72,652.38,1.13018886]
[1740077332805,3.09517201,652.72,652.21,1.13018886]
[1740077332806,3.09517201,652.71,652.21,1.13018886]
[1740077333002,3.09517201,652.7,652.21,1.13018886]
[1740077333200,3.09517201,652.69,652.21,1.13018886]
[1740077333403,3.09517201,652.68,652.21,1.13018886]
[1740077333607,3.09517201,652.67,652.21,1.13018886]
[1740077333807,3.09517201,652.66,652.21,1.13018886]
[1740077334107,5.30596091,652.65,652.21,1.13018886]
[1740077334305,3.09517201,652.64,652.21,1.13018886]
[1740077334505,2.2107889,652.65,652.21,1.13018886]
[1740077335306,2.2107889,652.65,652.17,1.13018886]
[1740077335506,1.161,653.03,652.17,1.13018886]
[1740077335707,3.09863561,653.02,652.17,1.13018886]
[1740077336009,3.09863561,653.01,652.17,1.13018886]
[1740077336210,3.09863561,653.0,652.17,1.13018886]
[1740077336410,3.09863561,652.99,652.17,1.13018886]
[1740077336606,3.09863561,652.98,652.17,1.13018886]
[1740077336810,3.09863561,652.97,652.17,1.13018886]
[1740077337009,3.09863561,652.96,652.17,1.13018886]
[1740077337304,3.09863561,652.95,652.17,1.13018886]
[1740077337505,3.09863561,652.94,652.17,1.13018886]
[1740077337704,3.09863561,652.93,652.17,1.13018886]
[1740077337904,3.09863561,652.92,652.17,1.13018886]
[1740077338107,2.21322248,652.94,652.29,1.13018886]
[1740077338108,3.09863561,652.91,652.29,1.13018886]
[1740077338303,3.09863561,652.9,652.29,1.13018886]
[1740077338504,3.09863561,652.89,652.29,1.13018886]
[1740077338706,3.09863561,652.88,652.29,1.13018886]
[1740077338904,3.09863561,652.87,652.29,1.13018886]
[1740077339107,3.09863561,652.86,652.29,1.13018886]
[1740077339309,3.09863561,652.85,652.29,1.13018886]
[1740077339610,3.09863561,652.84,652.29,1.13018886]
[1740077339805,3.09863561,652.83,652.29,1.13018886]
[1740077340005,3.09863561,652.82,652.29,1.13018886]
[1740077340209,3.09863561,652.81,652.29,1.13018886]
[1740077340405,3.09863561,652.8,652.29,1.13018886]
[1740077340705,1.295,653.0,652.29,1.13018886]
[1740077340706,3.09863561,652.79,652.29,1.13018886]
[1740077340908,3.09863561,652.78,652.29,1.13018886]
[1740077341103,3.09863561,652.77,652.29,1.13018886]
[1740077341311,3.09863561,652.76,652.29,1.13018886]
[1740077341510,2.21322248,652.81,652.41,1.13018886]
[1740077341511,3.09863561,652.75,652.41,1.13018886]
[1740077341705,3.09863561,652.74,652.41,1.13018886]
[1740077341905,3.09863561,652.73,652.41,1.13018886]
[1740077342212,2.21322248,652.81,652.41,1.13018886]
[1740077342213,5.31185809,652.72,652.41,1.13018886]
[1740077342507,3.09863561,652.71,652.41,1.13018886]
[1740077342712,3.09863561,652.7,652.41,1.13018886]
[1740077342910,3.09863561,652.69,652.41,1.13018886]
[1740077343107,3.09863561,652.68,652.41,1.13018886]
[1740077343407,3.09863561,652.67,652.41,1.13018886]
[1740077343611,3.09863561,652.66,652.41,1.13018886]
[1740077343913,2.21322248,652.72,652.31,1.13018886]
[1740077343914,3.09863561,652.65,652.31,1.13018886]
[1740077344105,3.09863561,652.64,652.31,1.13018886]
[1740077344308,3.09863561,652.63,652.31,1.13018886]
[1740077344514,2.21322248,652.65,652.31,1.13018886]
[1740077344515,3.09863561,652.62,652.31,1.13018886]
[1740077344714,3.09863561,652.61,652.31,1.13018886]
[1740077344913,3.09863561,652.6,652.31,1.13018886]
[1740077345113,3.09863561,652.59,652.31,1.13018886]
[1740077345314,3.09863561,652.58,652.31,1.13018886]
[1740077345613,3.09863561,652.57,652.31,1.13018886]
[1740077345809,3.09863561,652.56,652.31,1.13018886]
[1740077346011,3.09863561,652.55,652.31,1.13018886]
[1740077346211,3.09863561,652.54,652.31,1.13018886]
[1740077346412,3.09863561,652.53,652.31,1.13018886]
[1740077346612,3.09863561,652.52,652.31,1.13018886]
[1740077346815,3.09863561,652.51,652.31,1.13018886]
[1740077347011,2.21322248,652.56,652.31,1.13018886]
[1740077347012,3.09863561,652.5,652.31,1.13018886]
[1740077347212,2.21322248,652.56,652.05,1.13018886]
[1740077347412,3.09867875,652.55,652.05,1.13018886]
[1740077347618,3.09853737,652.54,652.05,1.13018886]
[1740077347819,1.295,653.0,652.05,1.13018886]
[1740077348117,5.31168764,652.99,652.05,1.13018886]
[1740077348318,3.09841566,652.98,652.05,1.13018886]
[1740077348519,3.09841566,652.97,652.05,1.13018886]
[1740077348818,3.09841566,652.96,652.05,1.13018886]
[1740077349012,3.09841566,652.95,652.05,1.13018886]
[1740077349212,3.09841566,652.94,652.05,1.13018886]
[1740077349512,3.09841566,652.93,652.05,1.13018886]
[1740077349717,3.09841566,652.92,652.05,1.13018886]
[1740077350017,3.09841566,652.91,652.05,1.13018886]
[1740077350218,3.09841566,652.9,652.02,1.13018886]
[1740077350418,3.09841566,652.89,652.02,1.13018886]
[1740077350618,3.09841566,652.88,652.02,1.13018886]
[1740077350817,3.09841566,652.87,652.02,1.13018886]
[1740077351017,5.31168764,652.86,652.02,1.13018886]
[1740077351217,3.09841566,652.85,652.02,1.13018886]
[1740077351417,2.21327198,652.86,652.02,1.13018886]
[1740077351418,3.09841566,652.84,652.02,1.13018886]
[1740077351619,3.09841566,652.83,652.02,1.13018886]
[1740077351818,2.21327198,652.86,652.02,1.13018886]
[1740077351819,3.09841566,652.82,652.02,1.13018886]
[1740077352017,3.09841566,652.81,652.02,1.13018886]
[1740077352222,3.09841566,652.8,652.02,1.13018886]
[1740077352420,3.09841566,652.79,652.02,1.13018886]
[1740077352621,3.09841566,652.78,652.02,1.13018886]
[1740077352821,3.09841566,652.77,652.02,1.13018886]
[1740077353021,3.09841566,652.76,652.02,1.13018886]
[1740077353220,3.09841566,652.75,652.05,1.13018886]
[1740077353415,3.09841566,652.74,652.05,1.13018886]
[1740077353616,3.09841566,652.73,652.05,1.13018886]
[1740077353822,3.09841566,652.72,652.05,1.13018886]
[1740077354023,3.09841566,652.71,652.05,1.13018886]
[1740077354221,3.09841566,652.7,652.05,1.13018886]
[1740077354420,3.09841566,652.69,652.05,1.13018886]
[1740077354637,3.09841566,652.68,652.05,1.13018886]
[1740077354926,3.09841566,652.67,652.05,1.13018886]
[1740077355126,3.09841566,652.66,652.05,1.13018886]
[1740077355326,3.09841566,652.65,652.05,1.13018886]
[1740077355624,3.09841566,652.64,652.05,1.13018886]
[1740077355825,3.09841566,652.63,652.2,1.13018886]
[1740077356025,3.09841566,652.62,652.2,1.13018886]
[1740077356221,3.09841566,652.61,652.2,1.13018886]
[1740077356425,3.09841566,652.6,652.2,1.13018886]
[1740077356622,3.09841566,652.59,652.2,1.13018886]
[1740077356825,3.09841566,652.58,652.2,1.13018886]
[1740077357024,3.09841566,652.57,652.2,1.13018886]
[1740077357219,2.21327198,652.57,652.2,1.13018886]
[1740077357425,3.0949923,652.56,652.2,1.13018886]
[1740077357621,2.21327198,652.57,652.2,1.13018886]
[1740077358523,2.21327198,652.57,652.29,1.13018886]
[1740077359028,1.529,652.88,652.29,1.13018886]
[1740077359228,5.30565808,652.87,652.29,1.13018886]
[1740077359424,3.0949542,652.86,652.29,1.13018886]
[1740077359622,3.0949542,652.85,652.29,1.13018886]
[1740077359926,3.0949542,652.84,652.29,1.13018886]
[1740077360122,3.0949542,652.83,652.29,1.13018886]
[1740077360324,3.0949542,652.82,652.29,1.13018886]
[1740077360527,3.0949542,652.81,652.29,1.13018886]
[1740077360726,3.0949542,652.8,652.29,1.13018886]
[1740077360920,3.0949542,652.79,652.29,1.13018886]
[1740077361125,3.0949542,652.78,652.32,1.13018886]
[1740077361325,3.0949542,652.77,652.32,1.13018886]
[1740077361624,3.0949542,652.76,652.32,1.13018886]
[1740077361823,3.0949542,652.75,652.32,1.13018886]
[1740077362025,3.0949542,652.74,652.32,1.13018886]
[1740077362221,3.0949542,652.73,652.32,1.13018886]
[1740077362426,3.0949542,652.72,652.32,1.13018886]
[1740077362623,3.0949542,652.71,652.32,1.13018886]
[1740077362825,3.0949542,652.7,652.32,1.13018886]
[1740077363022,3.0949542,652.69,652.32,1.13018886]
[1740077363327,3.0949542,652.68,652.32,1.13018886]
[1740077363527,3.0949542,652.67,652.32,1.13018886]
[1740077363723,3.0949542,652.66,652.32,1.13018886]
[1740077363931,3.0949542,652.65,652.2,1.13018886]
[1740077364227,5.30565808,652.64,652.2,1.13018886]
[1740077364423,3.0949542,652.63,652.2,1.13018886]
[1740077364627,3.0949542,652.62,652.2,1.13018886]
[1740077364828,3.0949542,652.61,652.2,1.13018886]
[1740077365024,2.21070388,652.64,652.2,1.13018886]
[1740077365222,3.09473156,652.63,652.2,1.13018886]
[1740077365429,2.21070388,652.64,652.2,1.13018886]
[1740077365727,3.09470377,652.63,652.2,1.13018886]
[1740077365929,2.21070388,652.63,652.2,1.13018886]
[1740077367125,3.09475248,652.62,652.2,1.13018886]
[1740077367328,2.21070388,652.63,652.26,1.13018886]
[1740077367529,3.09486821,652.62,652.26,1.13018886]
[1740077367729,2.21070388,652.62,652.26,1.13018886]
[1740077368932,3.09485093,652.61,652.26,1.13018886]
[1740077369131,3.09485093,652.6,652.26,1.13018886]
[1740077369332,2.21070388,652.62,652.26,1.13018886]
[1740077369533,3.09486895,652.61,652.26,1.13018886]
[1740077369734,3.09486895,652.6,652.26,1.13018886]
[1740077369936,3.09486895,652.59,652.26,1.13018886]
[1740077370231,3.09486895,652.58,652.26,1.13018886]
[1740077370430,3.09486895,652.57,652.26,1.13018886]
[1740077370628,3.09486895,652.56,652.38,1.13018886]
[1740077370827,3.09446014,652.55,652.38,1.13018886]
[1740077371030,3.09446014,652.54,652.38,1.13018886]
[1740077371234,3.09446014,652.53,652.38,1.13018886]
[1740077371435,3.09450357,652.52,652.38,1.13018886]
[1740077371731,3.09441587,652.51,652.38,1.13018886]
[1740077371938,3.09441587,652.5,652.38,1.13018886]
[1740077372238,1.529,652.88,652.38,1.13018886]
[1740077372435,3.09421322,652.87,652.38,1.13018886]
[1740077372635,3.09421322,652.86,652.38,1.13018886]
[1740077372836,3.09421322,652.85,652.38,1.13018886]
[1740077373032,3.09421322,652.84,652.38,1.13018886]
[1740077373230,3.09421322,652.83,652.38,1.13018886]
[1740077373431,3.09421322,652.82,652.38,1.13018886]
[1740077373630,3.09421322,652.81,652.38,1.13018886]
[1740077373831,2.21029232,652.86,652.21,1.12967756]
[1740077373832,3.09421322,652.8,652.21,1.13018886]
[1740077374134,3.09421322,652.79,652.21,1.13018886]
[1740077374335,3.09421322,652.78,652.21,1.13018886]
[1740077374536,5.30450554,652.77,652.21,1.13018886]
[1740077374730,3.09421322,652.76,652.21,1.13018886]
[1740077374933,3.09421322,652.75,652.21,1.13018886]
[1740077375133,3.09421322,652.74,652.21,1.13018886]
[1740077375330,3.09421322,652.73,652.21,1.13018886]
[1740077375531,3.09421322,652.72,652.21,1.13018886]
[1740077375733,3.09421322,652.71,652.21,1.13018886]
[1740077375936,3.09421322,652.7,652.21,1.13018886]
[1740077376130,3.09421322,652.69,652.21,1.13018886]
[1740077376329,3.09421322,652.68,652.21,1.13018886]
[1740077376535,3.09421322,652.67,652.21,1.13018886]
[1740077376730,2.21029232,652.7,651.9,1.12967756]